Cogmind - Beta 11.1 @@@ ROGUE MODE // 2022.05.24 @ 16:25:11 Player: btmk16 Result: Self-destructed Performance ------------- Evolutions (3) 1500 Regions Visited (4) 800 Robots Destroyed (50) 250 Value Destroyed (1250) 1250 Prototype IDs (3) 60 Alien Tech Used (0) 0 Bonus (212) 212 TOTAL SCORE: 4072 Bonus ------- High Alert Combat Kills 212 Cogmind --------- Core Integrity 576/700 Matter 13/300 Energy 310/310 System Corruption 0% Temperature Cool (18) Movement Core (700) Ox13 Location -7/Factory Parts ------- > --- POWER (1) -------- Heavy Deuterium Engine > --- PROPULSION (4) --- (None) > --- UTILITY (6) ------ Large Storage Unit Trap Scanner Improved Weapon Shielding Improved Weapon Shielding Improved Weapon Shielding > --- WEAPON (2) ------- Mini Grenade Launcher Mini Grenade Launcher > --- INVENTORY (15) --- Light Ion Engine Improved Flight Unit Improved Flight Unit Improved Flight Unit Large Matter Pod (0) Improved Terrain Scanner Medium Armor Plating System Restoration Module Medium Laser Minigun Minigun Advanced EMP Blaster Mini Grenade Launcher Mini Grenade Launcher Peak State ------------ > --- POWER ------------ Heavy Deuterium Engine > --- PROPULSION ------- Improved Aluminum Leg Improved Aluminum Leg Improved Aluminum Leg > --- UTILITY ---------- Large Storage Unit Trap Scanner Improved Weapon Shielding Improved Weapon Shielding Improved Weapon Shielding > --- WEAPON ----------- Mini Grenade Launcher Mini Grenade Launcher > --- INVENTORY -------- Light Ion Engine Compact Wheel Improved Flight Unit Improved Flight Unit Improved Flight Unit Large Matter Pod Improved Terrain Scanner Medium Armor Plating System Restoration Module Medium Laser Minigun Minigun Advanced EMP Blaster Mini Grenade Launcher Mini Grenade Launcher [Rating: 31] Favorites ----------- Power Ion Engine Engine Ion Engine Propulsion Improved Aluminum Leg Leg Improved Aluminum Leg Wheel Compact Wheel Utility Improved Weapon Shielding Device Trap Scanner Storage Large Storage Unit Protection Improved Weapon Shielding Weapon Mini Grenade Launcher Energy Gun Medium Laser Ballistic Gun Light Assault Rifle Launcher Mini Grenade Launcher Build | -11 -10 -9 -8 -7 ------- Run | Scr Mat Mat Mat Fac Slots Evolved 6 | . . 2 2 2 Power . | . . . . . Propulsion 2 | . . 1 . 1 Utility 4 | . . 1 2 1 Weapon . | . . . . . Parts Attached 21 | . 8 5 6 2 Power 4 | . 1 1 1 1 Engine 4 | . 1 1 1 1 Core . | . . . . . Reactor . | . . . . . Propulsion 5 | . 2 2 . 1 Treads . | . . . . . Leg 4 | . 2 2 . . Wheel 1 | . . . . 1 Hover . | . . . . . Flight . | . . . . . Utility 7 | . 2 2 3 . Device 1 | . . 1 . . Storage 1 | . 1 . . . Processor . | . . . . . Hackware . | . . . . . Protection 5 | . 1 1 3 . Artifact . | . . . . . Weapon 5 | . 3 . 2 . Energy Gun . | . . . . . Energy Cannon . | . . . . . Ballistic Gun 1 | . 1 . . . Ballistic Cannon . | . . . . . Launcher 4 | . 2 . 2 . Special Weapon . | . . . . . Impact Weapon . | . . . . . Slashing Weapon . | . . . . . Piercing Weapon . | . . . . . Special Melee Weapon . | . . . . . Unidentified Prototypes 3 | . . . 2 1 Parts Lost 7 | . 1 1 . 5 Power 2 | . . 1 . 1 Propulsion 4 | . . . . 4 Utility 1 | . 1 . . . Weapon . | . . . . . Highest Loss Streak 3 | . 1 1 . 3 To Critical Strikes . | . . . . . Average Slot Usage (%) 90 | . 97 86 98 81 Engine 10 | . 14 11 9 6 Leg 25 | . 28 27 27 19 Device 6 | . . 7 9 7 Storage 10 | . 14 11 9 7 Protection 16 | . 12 7 27 23 Energy Gun 1 | . 8 . . . Ballistic Gun 1 | . 8 . . . Launcher 16 | . 10 22 17 15 Naked Turns . | . . . . . Heaviest Build 41 | 11 29 31 38 41 Greatest Support 39 | 20 26 39 39 39 Greatest Overweight (x) 3 | . 1 1 . 3 Average Overweight (x) . | . . . . . Largest Inventory Capacity 15 | . 15 15 15 15 Average Capacity 14 | . 11 15 15 15 Most Carried 15 | . 9 15 15 15 Average Carried 12 | . 7 13 14 14 Final Capacity 15 | 8 15 15 15 15 Final Carried 15 | 6 9 15 15 14 Class Distribution -------------------- 100% | Mutant Dominant Class ---------------- Mutant | -10/Materials Mutant | -9/Materials Mutant | -8/Materials Mutant | -7/Factory Resources | -11 -10 -9 -8 -7 ----------- Run | Scr Mat Mat Mat Fac Matter Collected 900 | 150 109 221 416 4 Remotely . | . . . . . Salvage Created 1078 | . 159 319 583 17 Parts 64 | . 9 28 27 . Haulers Intercepted 5 | . . 1 3 1 Recyclers Shooed 3 | . 1 1 1 . Parts Field Recycled . | . . . . . Retrieved Matter . | . . . . . Parts Self-Destructed . | . . . . . Prevented . | . . . . . Kills | -11 -10 -9 -8 -7 ------- Run | Scr Mat Mat Mat Fac Combat Hostiles Destroyed 26 | . 3 8 12 3 Guns 1 | . 1 . . . AOE 25 | . 2 8 12 3 Classes Destroyed 11 | . 3 3 4 1 Worker 3 | . . . 2 1 Builder 7 | . 1 5 1 . Tunneler 1 | . . . 1 . Hauler 5 | . . 1 3 1 Recycler 5 | . 1 1 3 . Mechanic 1 | . . 1 . . Operator 2 | . . 1 1 . Swarmer 3 | . . . 3 . Grunt 21 | . 3 8 8 2 Sentry 1 | . . . 1 . Hunter 1 | . . . . 1 Best Kill Streak 7 | . 2 7 7 3 Combat Bots Only 6 | . 1 4 6 2 Max Kills in Single Turn 6 | . 2 4 6 2 Gunslinging . | . . . . . Exploded 5 | . 1 2 5 1 Melee . | . . . . . Uniques/NPCs Destroyed . | . . . . . Combat | -11 -10 -9 -8 -7 -------- Run | Scr Mat Mat Mat Fac Damage Taken 1158 | . 240 187 189 542 Core 240 | . 43 55 18 124 Absorbed by Shields . | . . . . . Redirected to Shielding 93 | . . 17 32 44 Core Remaining (%) 91 | 100 82 86 96 . Volleys Fired 66 | . 16 15 22 13 Largest 2 | . 2 2 2 2 Hottest 70 | . 70 60 60 60 Shots Fired 105 | . 31 24 28 22 Gun 26 | . 26 . . . Cannon . | . . . . . Launcher 79 | . 5 24 28 22 Special . | . . . . . Kinetic 13 | . 13 . . . Thermal 13 | . 13 . . . Explosive 79 | . 5 24 28 22 Electromagnetic . | . . . . . Robot Hit Streak 6 | . 6 3 5 4 Robot Miss Streak 5 | . 5 2 4 2 Penetration Max . | . . . . . Secondary Targets . | . . . . . Shots Hit Robots 37 | . 16 6 8 7 Core Hits 87 | . 7 27 40 13 Critical Kills . | . . . . . Critical Parts Destroyed . | . . . . . Critical Strikes . | . . . . . Melee Attacks . | . . . . . Impact . | . . . . . Slashing . | . . . . . Piercing . | . . . . . Sneak Attacks . | . . . . . Combat Hostiles . | . . . . . Follow-up Attacks . | . . . . . Damage Inflicted 4561 | . 682 1330 1646 903 Guns 141 | . 141 . . . Cannons . | . . . . . Explosions 4419 | . 541 1329 1646 903 Melee . | . . . . . Ramming 1 | . . 1 . . Kinetic 66 | . 66 . . . Thermal 75 | . 75 . . . Explosive 4340 | . 541 1250 1646 903 Electromagnetic 79 | . . 79 . . Impact . | . . . . . Slashing . | . . . . . Piercing . | . . . . . Highest Corruption 2 | . . 2 . . Average Corruption 2 | . . 2 . . Corruption Purged . | . . . . . Corruption Blocked . | . . . . . Effects 6 | . . 6 . . Message Errors 2 | . . 2 . . Matter Fused 1 | . . 1 . . Heat Flow Errors 2 | . . 2 . . Data Loss (minor) 1 | . . 1 . . Overload Shots . | . . . . . Overflow Damage 154 | . 84 56 11 3 Projectiles . | . . . . . Explosions 154 | . 84 56 11 3 Melee . | . . . . . Knockbacks . | . . . . . Impact . | . . . . . Kinetic . | . . . . . Secondary . | . . . . . Self-Inflicted Damage 259 | . 55 122 39 43 Shots 10 | . 2 5 1 2 Rammed . | . . . . . Targets Rammed 1 | . . 1 . . Kicked 1 | . . 1 . . Crushed . | . . . . . Highest Temperature 265 | . 248 265 10 15 Average Temperature 96 | . 108 105 2 5 Received Heat Transfer 447 | . 123 57 90 177 Effects 1 | . 1 . . . Interference 1 | . 1 . . . Siege Activations . | . . . . . Robots Corrupted . | . . . . . Combat Hostiles . | . . . . . Parts Fried 1 | . . 1 . . Impact Corruptions . | . . . . . Robots Melted . | . . . . . Combat Hostiles . | . . . . . Parts Melted . | . . . . . Heat Transferred 222 | . 222 . . . Parts Sabotaged . | . . . . . Parts Stolen . | . . . . . Parts Stripped . | . . . . . Power Chain Reactions 1 | . . 1 . . Missiles Intercepted . | . . . . . Alert | -11 -10 -9 -8 -7 ------- Run | Scr Mat Mat Mat Fac Peak Influence 868 | . 281 619 868 501 Initial 326 | . . 118 261 326 Average 358 | . 117 343 567 408 Maximum Alert Level 3 | . 1 2 3 2 Low Security (%) 27 | . 80 29 . . Level 1 30 | . 19 23 28 52 Level 2 36 | . . 46 43 47 Level 3 5 | . . . 27 . Level 4 . | . . . . . Level 5 . | . . . . . High Security . | . . . . . Max Security . | . . . . . Squads Dispatched 7 | . 1 2 3 1 Investigation 1 | . . . 1 . Extermination . | . . . . . Reinforcement 6 | . 1 2 2 1 Assault . | . . . . . Garrison . | . . . . . Intercept . | . . . . . Searches Triggered . | . . . . . Construction Impeded 1 | . . 1 . . Haulers Reinforced 1 | . . . . 1 Active Scanning Responses . | . . . . . Cargo Convoy Interrupts . | . . . . . Stealth | -11 -10 -9 -8 -7 --------- Run | Scr Mat Mat Mat Fac Distress Signals 2 | . . 1 1 . Communications Jammed . | . . . . . Distress Signals . | . . . . . Times Spotted 37 | . 6 10 16 5 Peak Tracking Total 6 | . 2 4 6 2 Tactical Retreats 2 | . 1 1 . . Traps | -11 -10 -9 -8 -7 ------- Run | Scr Mat Mat Mat Fac Traps Triggered . | . . . . . Indirectly . | . . . . . Trap Hack Attempts . | . . . . . Triggered . | . . . . . Disarmed . | . . . . . Reprogrammed . | . . . . . Reused . | . . . . . Traps Extracted . | . . . . . Installed . | . . . . . Triggered . | . . . . . Machines | -11 -10 -9 -8 -7 ---------- Run | Scr Mat Mat Mat Fac Machines Disabled 12 | . 2 5 3 2 Max in Single Turn 2 | . 2 2 2 2 Machines Sabotaged . | . . . . . Garrisons Compromised . | . . . . . Overloaded Fab Kills . | . . . . . Hacking | -11 -10 -9 -8 -7 --------- Run | Scr Mat Mat Mat Fac Machines Accessed 4 | . . 1 3 . Terminals 3 | . . . 3 . Fabricators . | . . . . . Repair Stations . | . . . . . Recycling Units 1 | . . 1 . . Scanalyzers . | . . . . . Garrison Access . | . . . . . Total Hacks 17 | . . 2 15 . Successful 4 | . . 2 2 . Failed 13 | . . . 13 . Catastrophic . | . . . . . Database Lockouts . | . . . . . Manual 14 | . . . 14 . Terminals 15 | . . . 15 . Fabricators . | . . . . . Repair Stations . | . . . . . Recycling Units 2 | . . 2 . . Scanalyzers . | . . . . . Garrison Access . | . . . . . Terminal Hacks 2 | . . . 2 . Alert Level 1 | . . . 1 . Unreport Threat 1 | . . . 1 . Fabricator Hacks . | . . . . . Repair Station Hacks . | . . . . . Recycling Unit Hacks 2 | . . 2 . . Retrieve Matter 2 | . . 2 . . Scanalyzer . | . . . . . Garrison Access Hacks . | . . . . . Unauthorized Hacks . | . . . . . Terminals . | . . . . . Fabricators . | . . . . . Repair Stations . | . . . . . Recycling Units . | . . . . . Scanalyzers . | . . . . . Garrison Access . | . . . . . Data Cores Recovered 1 | . . 1 . . Used . | . . . . . Hacking Detections 3 | . . . 3 . Full Trace Events 1 | . . . 1 . Feedback Events . | . . . . . Feedback Blocked . | . . . . . Robot Schematics Acquired . | . . . . . Robots Built . | . . . . . Authchips . | . . . . . Time . | . . . . . Total Robot Build Rating . | . . . . . Part Schematics Acquired . | . . . . . Parts Built . | . . . . . Authchips . | . . . . . Time . | . . . . . Total Part Build Rating . | . . . . . Parts Repaired . | . . . . . Time . | . . . . . Parts Recycled . | . . . . . Recycled Matter . | . . . . . Retrieved Matter . | . . . . . Retrieved Components . | . . . . . Parts Scanalyzed . | . . . . . Part Schematics Acquired . | . . . . . Parts Damaged . | . . . . . Bothacking | -11 -10 -9 -8 -7 ------------ Run | Scr Mat Mat Mat Fac Used RIF Installer . | . . . . . Robots Hacked . | . . . . . Non-combat . | . . . . . Combat . | . . . . . Robot Hacks Applied . | . . . . . Relay Couplers Released . | . . . . . Fabnet Peak Effective % . | . . . . . Robots Rewired . | . . . . . Allies Hacked . | . . . . . Hacks Repelled . | . . . . . Allies | -11 -10 -9 -8 -7 -------- Run | Scr Mat Mat Mat Fac Total Allies . | . . . . . Largest Group . | . . . . . Highest-Rated Group . | . . . . . Highest-Rated Ally . | . . . . . Total Orders . | . . . . . Ally Attacks . | . . . . . Total Damage . | . . . . . Kills . | . . . . . Allies Corrupted . | . . . . . Allies Melted . | . . . . . Intel | -11 -10 -9 -8 -7 ------- Run | Scr Mat Mat Mat Fac Robot Analysis Total . | . . . . . Derelict Logs Recovered . | . . . . . Drone Launches . | . . . . . Drone Recoveries . | . . . . . Exploration | -11 -10 -9 -8 -7 ------------- Run | Scr Mat Mat Mat Fac Turns Passed 1701 | . 363 572 367 399 Spaces Moved 1037 | 1 204 336 251 245 Core . | . . . . . Treads . | . . . . . Legs 993 | 1 204 336 251 201 Wheels 44 | . . . . 44 Hover . | . . . . . Flight . | . . . . . Fastest Speed 120 | 120 120 120 120 120 Average Speed 139 | 120 142 146 120 147 Slowest Speed 330 | 120 190 190 120 330 Overloaded Moves . | . . . . . Propulsion Burnouts . | . . . . . Robots Hopped . | . . . . . Cave-ins Triggered . | . . . . . Exploration Rate (%) 23 | 2 42 34 32 7 Regions Visited 4 Branch Regions . Pre-discovered Areas . | . . . . . Known Exits Taken . | . . . . . Unknown Exits Taken 4 | 1 1 1 1 . Scrap Searched . | . . . . . Spaces Dug 32 | . . 17 10 5 Terrain Destroyed 516 | . 51 133 199 133 Melee . | . . . . . Projectile . | . . . . . AOE 516 | . 51 133 199 133 Terrain Rammed . | . . . . . Walls Destroyed . | . . . . . Machines Disabled . | . . . . . Actions | -11 -10 -9 -8 -7 --------- Run | Scr Mat Mat Mat Fac Total 1190 | . 250 391 289 260 Wait 38 | . 8 25 5 . Move 1033 | . 203 335 250 245 Hop . | . . . . . Pick Up 17 | . 7 8 2 . Fast Attach 7 | . 1 3 2 1 Attach 5 | . . 1 3 1 Detach 2 | . . . 2 . Swap 9 | . 7 1 1 . Drop 12 | . 8 2 2 . Fire 66 | . 16 15 22 13 Melee . | . . . . . Ram . | . . . . . Kick 1 | . . 1 . . Crush . | . . . . . Escape Stasis . | . . . . . Rewire . | . . . . . Trap . | . . . . . Miscellaneous . | . . . . . Route ------- -11/Scrapyard -10/Materials -9/Materials -8/Materials -7/Factory History --------- Turn | Location | Event 1 | -11/Scrapyard | Discovered new exit (range 0) 1 | -11/Scrapyard | Entered Materials 308 | -10/Materials | Discovered new exit (range 16) 312 | -10/Materials | Build established: Mutant 364 | -10/Materials | Entered another Materials area 364 | -9/Materials | Evolved 2 slots: Propulsion x1, Utility x1 681 | -9/Materials | Discovered new exit (range 9) 936 | -9/Materials | Entered another Materials area 936 | -8/Materials | Evolved 2 slots: Utility x2 1279 | -8/Materials | Discovered new exit (range 12) 1303 | -8/Materials | Entered Factory 1303 | -7/Factory | Evolved 2 slots: Propulsion x1, Utility x1 1696 | -7/Factory | Lost 3 parts (3n) 1702 | -7/Factory | Self-destructed Last Messages --------------- 01534_ R-06 Scavenger collects Prototype Ballistic Cannon. 01536_ K-01 Serf collects debris. 01537_ U-05 Engineer lays Concrete. 01598_ U-05 Engineer builds a Wall. 01607_ The unstable cave ceiling collapses. 01628_ U-05 Engineer lays Concrete. 01636_ The unstable cave ceiling collapses. 01636_ U-05 Engineer lays Concrete. 01638_ Nuclear Reactor explodes. 01638_ The unstable cave ceiling collapses. 01638_ Nuclear Reactor explodes. 01638_ Imp. Aluminum Leg destroyed. 01638_ U-05 Engineer lays Concrete. 01646_ The unstable cave ceiling collapses. 01646_ U-05 Engineer lays Concrete. 01650_ The unstable cave ceiling collapses. 01650_ U-05 Engineer lays Concrete. 01665_ Imp. Aluminum Leg destroyed. 01669_ U-05 Engineer builds a Wall. 01702_ Com. Wheel destroyed. Map ----- +----------------------------------------------------+ | | | | | | | | | | | | | | | | | | | ?????????????????????????????????????????????????? | | ?????????????????????????????????????????????????? | | ?????????????????????????????????????????????????? | | ?????????????????????????????????????????????????? | | ?????????????????????????????????????????????????? | | ?????????????????????????????????????????????????? | | ?????????????????????????????????????????????????? | | ??????????????????????###+#??????????????????????? | | ??????????????????????? ??????????????????????? | | ??????????????????????? ??????????????????????? | | ??????????????????????? Y ??????????????????????? | | ???????????????????????? ??????????????????????? | | ???????????????????????? ?????###+#####????????? | | ????????????????????????# #?????# ?????????? | | ????????????????????????# #?????# #??????????? | | ???????????????????????## ##????# #??????????? | | ???????????????????????#!@ ###### #??????????? | | #########??????????????# t #??????????? | | #??????????????#] ]###### #??????????? | | """" #???????##?????#####????# #??????????? | | """" #????### #?????????????# #??????????? | | """" ##### #????????????# #??????????? | | """" # #????????????# #??????????? | | """" # # ##???????????# +??????????? | | """" ##??????##### #??????????? | | """" ??????? # #??????????? | | #?#?? # #??????????? | | ! # #?# """" # #??????????? | | ### """" # #??????????? | | # ## """" / #??????????? | | # #?# """" # #??????????? | | # #?? # #??????????? | | # #???? ?# #??????????? | | ######+#### #########+##### ###????????? | | ^ ** ?? | | ** ? | | ^ * ?? | | ""?? | | "??? | | ### # ####+############/##### "??? | | ## # ?????????? ????# "??? | +----------------------------------------------------+ Best States ------------- Heat Dissipation 34 Energy Generation 18 Energy Capacity 310 Matter Stores 277 Matter Capacity 300 Sight Range 16 Terrain Scan Density 10 Armor Coverage 150 Weapon Shielding 66 Evasion (%) 55 Item Schematics ----------------- None Robot Schematics ------------------ None Fabricated ------------ Nothing Alien Tech Used ----------------- None Achievements -------------- None Challenges ------------ None Game ------ Seed GuidedGodChainsword Manual? 0 Play Time 00:15:36 Cumulative 252.5 hours Start 2022.05.24 @ 16:12:07 End 2022.05.24 @ 16:25:11 Sessions 1 Manual Loads 0 Difficulty Rogue Special Mode None Game No. 341 Rogue 341 Adventurer 0 Explorer 0 Win Type - Total 5 Types 4/0/0/1/0/0/0/0/0 Lore% 66 Gallery% 78 Achievement% 57 Wizard Run 0 Options --------- ASCII 0 Keyboard 1 Movement Vi Keybinds 0 Fullscreen 1 Font 18/SmallcapsGlow Map View 76x50 Tactical HUD 1 Map Filters NONE Filters NONE Steam 1 RUN: 4f29c524-da13-4562-bc8a-916c29944cb5